fUST/lending_fUST_20250208
["ID","MTS","AMOUNT","RATE_DAILY","PERIOD"]
[352105183,1738949447174,-500.0,0.00011095,2]
[352105184,1738949447183,-500.0,0.00011095,2]
[352105185,1738949447193,-587.86,0.00011095,2]
[352105186,1738949447203,-500.0,0.00011095,2]
[352105187,1738949447214,-500.0,0.00011095,2]
[352105188,1738949447224,-500.0,0.00011095,2]
[352105189,1738949447233,-500.0,0.00011095,2]
[352105190,1738949447246,-1231.23,0.00011095,2]
[352105191,1738949447256,-500.0,0.00011095,2]
[352105193,1738949447266,-859.46,0.00011095,2]
[352105195,1738949447276,-500.0,0.00011095,2]
[352105197,1738949447286,-853.6,0.00011095,2]
[352105199,1738949447296,-856.56,0.00011095,2]
[352105200,1738949447305,-492.99047153,0.00011095,2]
[352105201,1738949447316,-500.0,0.00011095,2]
[352105202,1738949447328,-500.0,0.00011095,2]
[352105204,1738949447338,-500.0,0.00011095,2]
[352105206,1738949447348,-13918.92,0.00011095,2]
[352105207,1738949447358,-997.51,0.00011095,2]
[352105209,1738949447368,-500.0,0.00011095,2]
[352105210,1738949447378,-500.0,0.00011095,2]
[352105212,1738949447388,-500.0,0.00011095,2]
[352105214,1738949447399,-500.0,0.00011095,2]
[352105215,1738949447410,-500.0,0.00011095,2]
[352105216,1738949447421,-500.0,0.00011095,2]
[352105217,1738949447431,-500.0,0.00011095,2]
[352105218,1738949447442,-500.0,0.00011095,2]
[352105219,1738949447453,-500.0,0.00011095,2]
[352105220,1738949447465,-500.0,0.00011095,2]
[352105221,1738949447475,-3298.42,0.00011095,2]
[352105223,1738949447485,-1863.64,0.00011095,2]
[352105225,1738949447495,-542.71,0.00011095,2]
[352105226,1738949447504,-773.75,0.00011095,2]
[352105227,1738949447514,-500.0,0.00011095,2]
[352105229,1738949447524,-500.0,0.00011095,2]
[352105231,1738949447534,-500.0,0.00011095,2]
[352105232,1738949447544,-500.0,0.00011095,2]
[352105233,1738949447555,-753.62,0.00011095,2]
[352105234,1738949447565,-6193.01,0.00011095,2]
[352105235,1738949447575,-17935.06,0.00011095,2]
[352105236,1738949447585,-3389.26,0.00011095,2]
[352105237,1738949447595,-500.0,0.00011095,2]
[352105238,1738949447605,-500.0,0.00011095,2]
[352105239,1738949447615,-500.0,0.00011095,2]
[352105240,1738949447625,-500.0,0.00011095,2]
[352105241,1738949447634,-689.5,0.00011095,2]
[352105242,1738949447645,-500.0,0.00011095,2]
[352105243,1738949447655,-500.0,0.00011095,2]
[352105244,1738949447665,-500.0,0.00011095,2]
[352105245,1738949447677,-5125.12,0.00011095,2]
[352105246,1738949447688,-500.0,0.00011095,2]
[352105247,1738949447699,-500.0,0.00011095,2]
[352105248,1738949447710,-1043.84,0.00011095,2]
[352105249,1738949447720,-1682.91,0.00011095,2]
[352105250,1738949447729,-500.0,0.00011095,2]
[352105251,1738949447739,-1498.46,0.00011095,2]
[352105252,1738949447749,-2077.47,0.00011095,2]
[352105253,1738949447758,-567.06,0.00011095,2]
[352105254,1738949447767,-500.0,0.00011095,2]
[352105255,1738949447777,-500.0,0.00011095,2]
[352105256,1738949447787,-4685.86,0.00011095,2]
[352105257,1738949447797,-500.0,0.00011095,2]
[352105258,1738949447807,-996.6,0.00011095,2]
[352105259,1738949447818,-500.0,0.00011095,2]
[352105260,1738949447828,-500.0,0.00011095,2]
[352105261,1738949447838,-500.0,0.00011095,2]
[352105262,1738949447847,-500.0,0.00011095,2]
[352105263,1738949447858,-8814.43,0.00011095,2]
[352105264,1738949447867,-1145.19,0.00011095,2]
[352105265,1738949447877,-500.0,0.00011095,2]
[352105266,1738949447887,-674.74,0.00011095,2]
[352105267,1738949447897,-910.53,0.00011095,2]
[352105268,1738949447907,-500.0,0.00011095,2]
[352105269,1738949447917,-501.6,0.00011095,2]
[352105270,1738949447927,-805.13,0.00011095,2]
[352105271,1738949447936,-10091.66,0.00011095,2]
[352105272,1738949447946,-500.0,0.00011095,2]
[352105273,1738949447955,-500.0,0.00011095,2]
[352105274,1738949447967,-1783.93,0.00011095,2]
[352105275,1738949447977,-500.0,0.00011095,2]
[352105277,1738949447986,-500.0,0.00011095,2]
[352105279,1738949447996,-500.0,0.00011095,2]
[352105281,1738949448007,-2101.59,0.00011095,2]
[352105283,1738949448019,-500.0,0.00011095,2]
[352105285,1738949448029,-4366.96,0.00011095,2]
[352105287,1738949448039,-565.39,0.00011095,2]
[352105289,1738949448049,-523.37030893,0.00011095,2]
[352105290,1738949448059,-500.0,0.00011095,2]
[352105291,1738949448070,-856.95,0.00011095,2]
[352105292,1738949448080,-500.0,0.00011095,2]
[352105293,1738949448093,-500.0,0.00011095,2]
[352105294,1738949448104,-500.0,0.00011095,2]
[352105295,1738949448114,-5263.82,0.00011095,2]
[352105296,1738949448124,-501.82839792,0.00011095,2]
[352105297,1738949448134,-500.0,0.00011095,2]
[352105298,1738949448144,-500.0,0.00011095,2]
[352105299,1738949448155,-500.0,0.00011095,2]
[352105300,1738949448165,-500.0,0.00011095,2]
[352105301,1738949448176,-500.0,0.00011095,2]
[352105302,1738949448186,-500.0,0.00011095,2]
[352105303,1738949448197,-2403.82,0.00011095,2]
[352105304,1738949448209,-500.0,0.00011095,2]
[352105305,1738949448220,-500.0,0.00011095,2]
[352105306,1738949448230,-500.0,0.00011095,2]
[352105307,1738949448240,-500.0,0.00011095,2]
[352105308,1738949448250,-500.0,0.00011095,2]
[352105309,1738949448263,-2013.74,0.00011095,2]
[352105310,1738949448273,-500.0,0.00011095,2]
[352105311,1738949448283,-500.0,0.00011095,2]
[352105312,1738949448295,-500.0,0.00011095,2]
[352105313,1738949448307,-500.0,0.00011095,2]
[352105314,1738949448316,-500.0,0.00011095,2]
[352105315,1738949448327,-500.0,0.00011095,2]
[352105316,1738949448338,-1907.75,0.00011095,2]
[352105317,1738949448349,-1015.7,0.00011095,2]
[352105318,1738949448361,-500.0,0.00011095,2]
[352105319,1738949448372,-500.0,0.00011095,2]
[352105320,1738949448383,-500.0,0.00011095,2]
[352105321,1738949448393,-500.0,0.00011095,2]
[352105322,1738949448403,-500.0,0.00011095,2]
[352105323,1738949448413,-500.0,0.00011095,2]
[352105324,1738949448552,-500.0,0.00011095,2]
[352105325,1738949448563,-1489.14,0.00011095,2]
[352105326,1738949448574,-544.14,0.00011095,2]
[352105327,1738949448585,-806.88,0.00011095,2]
[352105328,1738949448596,-42882.94,0.00011095,2]
[352105329,1738949448607,-6548.18,0.00011095,2]
[352105330,1738949448617,-500.0,0.00011095,2]
[352105331,1738949448628,-500.0,0.00011095,2]
[352105332,1738949448638,-500.0,0.00011095,2]
[352105334,1738949448648,-500.0,0.00011095,2]
[352105336,1738949448659,-1957.41,0.00011095,2]
[352105338,1738949448670,-500.0,0.00011095,2]
[352105340,1738949448680,-500.0,0.00011095,2]
[352105342,1738949448691,-500.0,0.00011095,2]
[352105344,1738949448701,-500.0,0.00011095,2]
[352105346,1738949448715,-500.0,0.00011095,2]
[352105347,1738949448726,-2028.94,0.00011095,2]
[352105349,1738949448736,-500.0,0.00011095,2]
[352105351,1738949448745,-2760.23,0.00011095,2]
[352105352,1738949448756,-1065.04,0.00011095,2]
[352105353,1738949448766,-500.0,0.00011095,2]
[352105354,1738949448776,-500.0,0.00011095,2]
[352105356,1738949448787,-500.0,0.00011095,2]
[352105358,1738949448797,-500.0,0.00011095,2]
[352105360,1738949448807,-500.0,0.00011095,2]
[352105361,1738949448817,-500.0,0.00011095,2]
[352105363,1738949448828,-630.87,0.00011095,2]
[352105365,1738949448838,-500.0,0.00011095,2]
[352105366,1738949448848,-500.0,0.00011095,2]
[352105367,1738949448859,-5028.75,0.00011095,2]
[352105368,1738949448869,-500.0,0.00011095,2]
[352105369,1738949448879,-1490.32,0.00011095,2]
[352105370,1738949448890,-527.2,0.00011095,2]
[352105371,1738949448900,-500.0,0.00011095,2]
[352105372,1738949448911,-500.0,0.00011095,2]
[352105373,1738949448922,-500.0,0.00011095,2]
[352105374,1738949448931,-1043.44,0.00011095,2]
[352105375,1738949448941,-567.39,0.00011095,2]
[352105376,1738949448950,-511.34359771,0.00011095,2]
[352105377,1738949448962,-500.0,0.00011095,2]
[352105378,1738949448971,-500.0,0.00011095,2]
[352105379,1738949448981,-589.88,0.00011095,2]
[352105380,1738949448991,-15463.9,0.00011095,2]
[352105381,1738949449001,-500.0,0.00011095,2]
[352105382,1738949449011,-500.0,0.00011095,2]
[352105383,1738949449021,-500.0,0.00011095,2]
[352105384,1738949449030,-2657.63,0.00011095,2]
[352105385,1738949449040,-548.31,0.00011095,2]
[352105386,1738949449050,-495.74819903,0.00011095,2]
[352105387,1738949449059,-500.0,0.00011095,2]
[352105388,1738949449068,-500.0,0.00011095,2]
[352105389,1738949449078,-655.2,0.00011095,2]
[352105390,1738949449087,-500.0,0.00011095,2]
[352105391,1738949449097,-500.0,0.00011095,2]
[352105392,1738949449106,-500.0,0.00011095,2]
[352105393,1738949449116,-500.0,0.00011095,2]
[352105394,1738949449126,-1127.86,0.00011095,2]
[352105395,1738949449136,-151.0,0.000111,2]
[352105396,1738949449145,-151.0,0.000111,2]
[352105397,1738949449155,-151.0,0.000111,2]
[352105398,1738949449164,-151.0,0.000111,2]
[352105399,1738949449174,-151.0,0.000111,2]
[352105400,1738949449183,-151.0,0.000111,2]
[352105401,1738949449192,-151.0,0.00011124,2]
[352105402,1738949449202,-151.0,0.00011124,2]
[352105403,1738949449215,-151.0,0.00011124,2]
[352105404,1738949449225,-4298.60692323,0.00011132,2]
[352105405,1738949449235,-151.0,0.000112,2]
[352105406,1738949449246,-151.0,0.000112,2]
[352105407,1738949449257,-151.0,0.000112,2]
[352105408,1738949449269,-151.0,0.000112,2]
[352105409,1738949449278,-151.0,0.000112,2]
[352105410,1738949449289,-151.0,0.00011232,2]
[352105411,1738949449299,-151.0,0.00011232,2]
[352105412,1738949449308,-151.261311,0.00011232,2]
[352105413,1738949449318,-151.0,0.00011232,2]
[352105414,1738949449328,-500.0,0.00011232,2]
[352105415,1738949449339,-500.0,0.00011232,2]
[352105416,1738949449349,-500.0,0.00011232,2]
[352105417,1738949449358,-500.0,0.00011232,2]
[352105418,1738949449368,-500.0,0.00011232,2]
[352105419,1738949449377,-500.0,0.00011232,2]
[352105420,1738949449387,-500.0,0.00011232,2]
[352105421,1738949449397,-500.0,0.00011232,2]
[352105422,1738949449407,-500.0,0.00011232,2]
[352105423,1738949449416,-500.0,0.00011232,2]
[352105424,1738949449426,-500.0,0.00011232,2]
[352105425,1738949449435,-500.0,0.00011232,2]
[352105426,1738949449445,-500.0,0.00011232,2]
[352105427,1738949449455,-500.0,0.00011232,2]
[352105428,1738949449468,-500.0,0.00011232,2]
[352105429,1738949449478,-500.0,0.00011232,2]
[352105430,1738949449488,-512.66413506,0.00011232,2]
[352105431,1738949449497,-500.0,0.00011232,2]
[352105432,1738949449508,-500.0,0.00011232,2]
[352105433,1738949449517,-500.0,0.00011232,2]
[352105434,1738949449527,-500.0,0.00011232,2]
[352105435,1738949449537,-500.0,0.00011232,2]
[352105436,1738949449546,-500.0,0.00011232,2]
[352105437,1738949449557,-500.0,0.00011232,2]
[352105438,1738949449567,-500.97557477,0.00011232,2]
[352105439,1738949449577,-500.0,0.00011232,2]
[352105440,1738949449587,-500.0,0.00011232,2]
[352105441,1738949449597,-500.0,0.00011232,2]
[352105442,1738949449607,-500.0,0.00011232,2]
[352105443,1738949449617,-643.05173133,0.00011232,2]
[352105444,1738949449627,-278.31945059,0.00011232,2]
[352105445,1738949449636,-500.0,0.00011232,2]
[352105446,1738949449646,-500.0,0.00011232,2]
[352105447,1738949449655,-500.0,0.00011232,2]
[352105448,1738949449665,-500.0,0.00011232,2]
[352105449,1738949449675,-500.0,0.00011232,2]
[352105450,1738949449684,-500.0,0.00011232,2]
[352105451,1738949449694,-371.48801102,0.00011232,2]
[352105452,1738949449705,-500.0,0.00011232,2]
[352105453,1738949449718,-500.0,0.00011232,2]
[352105454,1738949449728,-500.0,0.00011232,2]
[352105455,1738949449738,-501.30723013,0.00011232,2]
[352105456,1738949449748,-500.0,0.00011232,2]
[352105457,1738949449758,-500.0,0.00011232,2]
[352105458,1738949449768,-500.0,0.00011232,2]
[352105459,1738949449777,-500.0,0.00011232,2]
[352105460,1738949449786,-500.0,0.00011232,2]
[352105461,1738949449796,-500.0,0.00011232,2]
[352105462,1738949449805,-500.0,0.00011232,2]
[352105463,1738949449814,-500.0,0.00011232,2]
[352105464,1738949449824,-500.0,0.00011232,2]
[352105465,1738949449834,-500.0,0.00011232,2]
[352105466,1738949449844,-500.0,0.00011232,2]
[352105467,1738949449855,-519.99234604,0.00011232,2]
[352105468,1738949449864,-500.0,0.00011232,2]
[352105469,1738949449874,-747.0,0.00011232,2]
[352105470,1738949449882,-500.0,0.00011232,2]
[352105471,1738949449892,-500.0,0.00011232,2]
[352105472,1738949449901,-289.85139457,0.00011232,2]
[352105473,1738949449911,-500.0,0.00011232,2]
[352105474,1738949449921,-500.0,0.00011232,2]
[352105475,1738949449930,-660.34,0.00011232,2]
[352105476,1738949449939,-500.0,0.00011232,2]
[352105477,1738949449948,-500.0,0.00011232,2]
[352105478,1738949449957,-500.0,0.00011232,2]
[352105479,1738949449969,-500.0,0.00011232,2]
[352105480,1738949449978,-500.0,0.00011232,2]
[352105481,1738949449987,-500.0,0.00011232,2]
[352105482,1738949449996,-500.0,0.00011232,2]
[352105483,1738949450006,-500.0,0.00011232,2]
[352105484,1738949450016,-788.97,0.00011232,2]
[352105485,1738949450025,-500.0,0.00011232,2]
[352105486,1738949450034,-500.0,0.00011232,2]
[352105487,1738949450043,-500.0,0.00011232,2]
[352105488,1738949450053,-500.0,0.00011232,2]
[352105489,1738949450063,-500.0,0.00011232,2]
[352105490,1738949450072,-500.0,0.00011232,2]
[352105491,1738949450082,-500.0,0.00011232,2]
[352105492,1738949450091,-500.0,0.00011232,2]
[352105493,1738949450101,-500.0,0.00011232,2]
[352105494,1738949450111,-500.0,0.00011232,2]
[352105495,1738949450119,-500.0,0.00011232,2]
[352105496,1738949450130,-500.0,0.00011232,2]
[352105497,1738949450139,-500.0,0.00011232,2]
[352105498,1738949450148,-500.0,0.00011232,2]
[352105499,1738949450158,-500.0,0.00011232,2]
[352105500,1738949450167,-500.0,0.00011232,2]
[352105501,1738949450176,-500.0,0.00011232,2]
[352105502,1738949450185,-500.0,0.00011232,2]
[352105503,1738949450195,-500.0,0.00011232,2]
[352105504,1738949450206,-500.0,0.00011232,2]
[352105505,1738949450217,-500.0,0.00011232,2]
[352105506,1738949450226,-377.31095079,0.00011232,2]
[352105507,1738949450235,-500.0,0.00011232,2]
[352105508,1738949450247,-901.78,0.00011232,2]
[352105509,1738949450257,-500.0,0.00011232,2]
[352105510,1738949450266,-500.0,0.00011232,2]
[352105511,1738949450276,-204.93,0.00011232,2]
[352105512,1738949450286,-1223.32,0.00011232,2]
[352105513,1738949450296,-500.0,0.00011232,2]
[352105514,1738949450305,-1498.95,0.00011232,2]
[352105515,1738949450315,-500.0,0.00011232,2]
[352105516,1738949450327,-609.01523026,0.00011232,2]
[352105517,1738949450336,-500.0,0.00011232,2]
[352105518,1738949450346,-500.0,0.00011232,2]
[352105519,1738949450356,-500.0,0.00011232,2]
[352105520,1738949450365,-500.0,0.00011232,2]
[352105521,1738949450374,-500.0,0.00011232,2]
[352105522,1738949450384,-500.0,0.00011232,2]
[352105523,1738949450393,-500.0,0.00011232,2]
[352105524,1738949450403,-500.0,0.00011232,2]
[352105525,1738949450415,-766.69,0.00011232,2]
[352105526,1738949450425,-427.8931166,0.00011232,2]
[352105527,1738949450434,-500.0,0.00011232,2]
[352105528,1738949450444,-500.0,0.00011232,2]
[352105529,1738949450454,-539.74,0.00011232,2]
[352105530,1738949450468,-643.97,0.00011232,2]
[352105531,1738949450479,-500.0,0.00011232,2]
[352105532,1738949450488,-504.77007568,0.00011232,2]
[352105533,1738949450497,-1434.51,0.00011232,2]
[352105534,1738949450507,-334.6,0.00011232,2]
[352105535,1738949450518,-500.0,0.00011232,2]
[352105536,1738949450528,-500.0,0.00011232,2]
[352105537,1738949450537,-500.0,0.00011232,2]
[352105538,1738949450547,-500.0,0.00011232,2]
[352105539,1738949450557,-898.49,0.00011232,2]
[352105540,1738949450566,-500.0,0.00011232,2]
[352105541,1738949450576,-500.0,0.00011232,2]
[352105542,1738949450586,-500.0,0.00011232,2]
[352105543,1738949450596,-524.48,0.00011232,2]
[352105544,1738949450605,-500.0,0.00011232,2]
[352105545,1738949450615,-500.0,0.00011232,2]
[352105546,1738949450625,-500.0,0.00011232,2]
[352105547,1738949450635,-500.0,0.00011232,2]
[352105548,1738949450645,-500.0,0.00011232,2]
[352105549,1738949450656,-500.0,0.00011232,2]
[352105550,1738949450666,-1068.79,0.00011232,2]
[352105551,1738949450676,-500.0,0.00011232,2]
[352105552,1738949450686,-500.0,0.00011232,2]
[352105553,1738949450696,-500.0,0.00011232,2]
[352105554,1738949450706,-500.0,0.00011232,2]
[352105555,1738949450722,-934.63,0.00011232,2]
[352105556,1738949450732,-500.0,0.00011232,2]
[352105557,1738949450744,-500.0,0.00011232,2]
[352105558,1738949450754,-726.64,0.00011232,2]
[352105559,1738949450764,-500.0,0.00011232,2]
[352105560,1738949450774,-634.96,0.00011232,2]
[352105561,1738949450785,-500.0,0.00011232,2]
[352105562,1738949450794,-500.0,0.00011232,2]
[352105563,1738949450804,-228.21,0.00011232,2]
[352105564,1738949450813,-500.0,0.00011232,2]
[352105565,1738949450823,-500.0,0.00011232,2]
[352105566,1738949450831,-500.0,0.00011232,2]
[352105567,1738949450840,-500.0,0.00011232,2]
[352105568,1738949450850,-500.0,0.00011232,2]
[352105569,1738949450859,-500.0,0.00011232,2]
[352105570,1738949450868,-500.0,0.00011232,2]
[352105571,1738949450878,-500.0,0.00011232,2]
[352105572,1738949450887,-500.0,0.00011232,2]
[352105573,1738949450897,-500.0,0.00011232,2]
[352105574,1738949450907,-151.0,0.00011232,2]
[352105575,1738949450917,-587.86,0.00011232,2]
[352105576,1738949450927,-500.0,0.00011232,2]
[352105577,1738949450936,-500.0,0.00011232,2]
[352105578,1738949451064,-500.0,0.00011232,2]
[352105579,1738949451074,-500.0,0.00011232,2]
[352105580,1738949451084,-1231.23,0.00011232,2]
[352105581,1738949451094,-500.0,0.00011232,2]
[352105582,1738949451103,-859.46,0.00011232,2]
[352105583,1738949451113,-500.0,0.00011232,2]
[352105584,1738949451122,-853.6,0.00011232,2]
[352105585,1738949451131,-856.56,0.00011232,2]
[352105586,1738949451141,-500.0,0.00011232,2]
[352105587,1738949451150,-500.0,0.00011232,2]
[352105588,1738949451159,-500.0,0.00011232,2]
[352105589,1738949451169,-13918.92,0.00011232,2]
[352105590,1738949451178,-351.26623,0.00011232,2]
[352105591,1738949451188,-351.26623,0.00011232,2]
[352105592,1738949451199,-997.51,0.00011232,2]
[352105593,1738949451208,-500.0,0.00011232,2]
[352105594,1738949451219,-381.18850077,0.00011232,2]
[352105595,1738949451229,-500.0,0.00011232,2]
[352105596,1738949451238,-351.95416788,0.00011232,2]
[352105597,1738949451249,-500.0,0.00011232,2]
[352105598,1738949451261,-500.0,0.00011232,2]
[352105599,1738949451271,-500.0,0.00011232,2]
[352105600,1738949451281,-500.0,0.00011232,2]
[352105601,1738949451291,-500.0,0.00011232,2]
[352105602,1738949451300,-500.0,0.00011232,2]
[352105603,1738949451310,-151.0,0.00011232,2]
[352105604,1738949451320,-1821.194024,0.00011232,2]
[352105605,1738949451330,-3298.42,0.00011232,2]
[352105606,1738949451341,-1863.64,0.00011232,2]
[352105607,1738949451352,-542.71,0.00011232,2]
[352105608,1738949451361,-1821.194024,0.00011232,2]
[352105609,1738949451370,-773.75,0.00011232,2]
[352105610,1738949451380,-500.0,0.00011232,2]
[352105611,1738949451390,-500.0,0.00011232,2]
[352105612,1738949451400,-500.0,0.00011232,2]
[352105613,1738949451409,-753.62,0.00011232,2]
[352105614,1738949451419,-6193.01,0.00011232,2]
[352105615,1738949451429,-17935.06,0.00011232,2]
[352105616,1738949451439,-3389.26,0.00011232,2]
[352105617,1738949451448,-423.0621364,0.00011232,2]
[352105618,1738949451458,-500.0,0.00011232,2]
[352105619,1738949451470,-500.0,0.00011232,2]
[352105620,1738949451480,-500.0,0.00011232,2]
[352105621,1738949451490,-689.5,0.00011232,2]
[352105622,1738949451506,-500.0,0.00011232,2]
[352105623,1738949451515,-151.0,0.00011232,2]
[352105624,1738949451525,-500.0,0.00011232,2]
[352105625,1738949451534,-500.0,0.00011232,2]
[352105626,1738949451543,-5125.12,0.00011232,2]
[352105627,1738949451554,-500.0,0.00011232,2]
[352105628,1738949451564,-500.0,0.00011232,2]
[352105629,1738949451573,-1043.84,0.00011232,2]
[352105630,1738949451583,-1682.91,0.00011232,2]
[352105631,1738949451593,-500.0,0.00011232,2]
[352105632,1738949451602,-1498.46,0.00011232,2]
[352105633,1738949451612,-2077.47,0.00011232,2]
[352105634,1738949451622,-567.06,0.00011232,2]
[352105635,1738949451631,-500.0,0.00011232,2]
[352105636,1738949451641,-500.0,0.00011232,2]
[352105637,1738949451651,-4685.86,0.00011232,2]
[352105638,1738949451661,-500.0,0.00011232,2]
[352105639,1738949451670,-996.6,0.00011232,2]
[352105640,1738949451680,-250.82977421,0.00011232,2]
[352105641,1738949451690,-500.0,0.00011232,2]
[352105642,1738949451700,-500.0,0.00011232,2]
[352105643,1738949451709,-500.0,0.00011232,2]
[352105644,1738949451720,-8814.43,0.00011232,2]
[352105645,1738949451730,-566.88898892,0.00011232,2]
[352105646,1738949451740,-674.74,0.00011232,2]
[352105647,1738949451750,-1145.19,0.00011232,2]
[352105648,1738949451760,-910.53,0.00011232,2]
[352105649,1738949451770,-500.0,0.00011232,2]
[352105650,1738949451780,-501.6,0.00011232,2]
[352105651,1738949451790,-345.457008,0.00011232,2]
[352105652,1738949451799,-805.13,0.00011232,2]
[352105653,1738949451810,-345.457008,0.00011232,2]
[352105654,1738949451819,-10091.66,0.00011232,2]
[352105655,1738949451829,-500.0,0.00011232,2]
[352105656,1738949451838,-500.0,0.00011232,2]
[352105657,1738949451848,-1783.93,0.00011232,2]
[352105658,1738949451857,-500.0,0.00011232,2]
[352105659,1738949451867,-500.0,0.00011232,2]
[352105660,1738949451876,-546.88,0.00011232,2]
[352105661,1738949451886,-2101.59,0.00011232,2]
[352105662,1738949451896,-500.0,0.00011232,2]
[352105663,1738949451906,-4366.96,0.00011232,2]
[352105664,1738949451915,-565.39,0.00011232,2]
[352105665,1738949451925,-500.0,0.00011232,2]
[352105666,1738949451934,-856.95,0.00011232,2]
[352105667,1738949451943,-500.0,0.00011232,2]
[352105668,1738949451953,-458.54865058,0.00011232,2]
[352105669,1738949451965,-500.0,0.00011232,2]
[352105670,1738949451975,-5263.82,0.00011232,2]
[352105671,1738949451984,-500.0,0.00011232,2]
[352105672,1738949451993,-500.0,0.00011232,2]
[352105673,1738949452003,-428.83655808,0.00011232,2]
[352105674,1738949452013,-500.0,0.00011232,2]
[352105675,1738949452022,-151.0,0.00011232,2]
[352105676,1738949452031,-500.0,0.00011232,2]
[352105677,1738949452040,-2403.82,0.00011232,2]
[352105678,1738949452050,-500.0,0.00011232,2]
[352105679,1738949452059,-151.0,0.00011232,2]
[352105680,1738949452068,-500.0,0.00011232,2]
[352105681,1738949452078,-500.0,0.00011232,2]
[352105682,1738949452086,-500.0,0.00011232,2]
[352105683,1738949452096,-500.0,0.00011232,2]
[352105684,1738949452106,-2013.74,0.00011232,2]
[352105685,1738949452115,-500.0,0.00011232,2]
[352105686,1738949452125,-500.0,0.00011232,2]
[352105687,1738949452135,-500.0,0.00011232,2]
[352105688,1738949452144,-500.0,0.00011232,2]
[352105689,1738949452154,-263.46057,0.00011232,2]
[352105690,1738949452170,-500.0,0.00011232,2]
[352105691,1738949452187,-1907.75,0.00011232,2]
[352105692,1738949452201,-1015.7,0.00011232,2]
[352105693,1738949452217,-500.0,0.00011232,2]
[352105694,1738949452232,-259.12,0.00011232,2]
[352105695,1738949452250,-500.0,0.00011232,2]
[352105696,1738949452263,-263.46057,0.00011232,2]
[352105697,1738949452278,-502.73058942,0.00011232,2]
[352105698,1738949452294,-500.0,0.00011232,2]
[352105699,1738949452308,-500.0,0.00011232,2]
[352105700,1738949452322,-411.0726,0.00011232,2]
[352105701,1738949452337,-500.0,0.00011232,2]
[352105702,1738949452351,-1489.14,0.00011232,2]
[352105703,1738949452362,-411.0726,0.00011232,2]
[352105704,1738949452375,-544.14,0.00011232,2]
[352105705,1738949452388,-806.88,0.00011232,2]
[352105706,1738949452402,-42882.94,0.00011232,2]
[352105707,1738949452415,-6548.18,0.00011232,2]
[352105708,1738949452430,-500.0,0.00011232,2]
[352105709,1738949452445,-606.05490238,0.00011232,2]
[352105710,1738949452457,-500.0,0.00011232,2]
[352105711,1738949452470,-500.0,0.00011232,2]
[352105712,1738949452481,-1957.41,0.00011232,2]
[352105713,1738949452497,-264.77835985,0.00011232,2]
[352105714,1738949452510,-500.0,0.00011232,2]
[352105715,1738949452521,-500.0,0.00011232,2]
[352105716,1738949452533,-500.0,0.00011232,2]